bitfinex/quotes_ETHUSD_20251215
["timestamp","ask_amount","ask_price","bid_price","bid_amount"]
[1765826339303,0.001,2944.4,2944.3,1.1951]
[1765826339530,0.001,2944.4,2944.3,0.7427]
[1765826339734,0.001,2944.4,2944.3,0.552]
[1765826340111,0.001,2944.4,2944.3,4.40079303]
[1765826340439,0.001,2944.4,2944.3,5.19959305]
[1765826341137,0.001,2944.4,2943.6,0.4524]
[1765826341636,0.001,2944.4,2944.3,0.1907]
[1765826341824,0.001,2944.4,2944.3,3.39639303]
[1765826342008,0.001,2944.4,2944.3,3.89279303]
[1765826342530,0.001,2944.4,2944.3,3.39639303]
[1765826342734,0.001,2944.4,2944.3,3.89279303]
[1765826343137,0.001,2944.9,2944.4,0.58047529]
[1765826343308,0.001,2944.9,2944.5,0.4964]
[1765826343503,0.001,2944.9,2944.6,0.552]
[1765826343704,0.001,2944.9,2944.6,7.58756861]
[1765826344011,0.001,2946.8,2944.9,3.39570104]
[1765826344208,0.05,2946.7,2945.0,1.15299579]
[1765826344403,0.1337,2945.9,2944.7,3.39582817]
[1765826344709,0.405504,2945.7,2944.6,0.552]
[1765826344906,0.405504,2945.7,2944.8,3.39580401]
[1765826345104,0.405504,2945.5,2944.8,0.552]
[1765826345618,0.405504,2945.5,2944.7,0.552]
[1765826345948,0.58047529,2946.6,2944.7,0.552]
[1765826345949,0.05,2946.6,2945.4,0.1924]
[1765826346139,0.4232,2946.6,2945.6,6.78978814]
[1765826346326,0.001,2946.8,2945.7,0.4964]
[1765826346640,0.001,2946.8,2945.8,8.44316624]
[1765826346803,0.001,2946.8,2945.9,0.552]
[1765826347003,0.001,2946.8,2945.9,1.62887529]
[1765826347236,0.001,2946.8,2946.3,0.58047529]
[1765826347418,0.001,2946.8,2946.4,1.0484]
[1765826347613,0.001,2946.8,2946.7,0.58047529]
[1765826347840,3.39159125,2948.5,2946.7,1.34207968]
[1765826348019,3.39145447,2948.6,2947.2,7.03556861]
[1765826348215,0.6079,2949.0,2947.6,7.03556861]
[1765826348216,0.1337,2949.0,2947.6,7.03556861]
[1765826348416,4.43751611,2950.5,2947.3,11.4186077]
[1765826348417,3.56713753,2950.2,2948.9,7.03556861]
[1765826348631,0.35671375,2950.1,2949.0,0.551]
[1765826348829,0.35671375,2950.1,2949.0,1.62787529]
[1765826349111,0.4242,2950.1,2949.1,0.1924]
[1765826349314,0.4242,2950.2,2949.0,0.551]
[1765826349921,0.1775,2949.1,2948.1,0.4964]
[1765826350218,0.58047529,2948.9,2948.1,0.551]
[1765826350542,0.58047529,2948.9,2947.7,6.78495096]
[1765826350543,0.39714553,2948.8,2948.2,0.551]
[1765826350844,0.39714553,2948.8,2947.7,0.4964]
[1765826351050,0.001,2948.0,2946.8,0.1924]
[1765826351228,0.001,2948.0,2946.9,0.551]
[1765826351432,0.001,2948.0,2947.6,3.39257606]
[1765826351625,0.001,2948.0,2947.9,0.1924]
[1765826351953,0.001,2948.0,2947.9,0.6888]
[1765826352132,0.001,2949.2,2947.9,7.47329064]
[1765826352453,0.001,2949.2,2948.0,1.07687529]
[1765826353052,3.39178006,2949.2,2948.1,0.4964]
[1765826353256,0.34017801,2949.2,2948.1,2.19200112]
[1765826353554,0.34017801,2949.2,2948.1,1.64100112]
[1765826353555,6.78252235,2949.2,2948.1,1.64100112]
[1765826353746,0.58047529,2949.1,2948.2,0.551]
[1765826354256,0.58047529,2949.0,2947.9,0.1924]
[1765826354455,0.58047529,2949.0,2948.0,0.551]
[1765826354630,0.1785,2948.9,2948.0,0.551]
[1765826355154,0.1785,2948.9,2947.9,0.1924]
[1765826355340,0.6037,2948.9,2948.1,3.94294546]
[1765826355523,0.405504,2948.8,2947.6,0.4964]
[1765826355852,0.830704,2948.8,2947.7,0.551]
[1765826356058,0.830704,2948.8,2947.8,3.39227236]
[1765826356255,6.78264998,2948.7,2947.7,0.551]
[1765826356557,0.7188154,2948.6,2947.8,0.4964]
[1765826356763,3.56963675,2948.9,2947.8,0.4964]
[1765826356958,0.1785,2948.9,2947.8,0.4964]
[1765826357154,0.58047529,2949.1,2947.8,0.4964]
[1765826357734,0.58047529,2949.1,2947.9,0.551]
[1765826357934,0.001,2948.9,2947.9,0.551]
[1765826358266,0.001,2948.9,2948.0,7.2806605]
[1765826358568,1.1803887,2948.9,2947.3,0.4964]
[1765826358741,0.7551887,2948.9,2947.9,3.39221291]
[1765826358944,0.7551887,2948.9,2948.0,0.551]
[1765826359256,0.7551887,2948.9,2948.1,0.1924]
[1765826359453,0.7551887,2948.9,2948.0,0.551]
[1765826360461,0.58047529,2948.7,2948.0,0.551]
[1765826360666,0.73628953,2948.6,2947.5,0.4964]
[1765826360966,0.73628953,2948.6,2948.0,6.78423556]
[1765826361173,1.33566399,2948.9,2948.1,0.551]
[1765826361473,0.7551887,2948.9,2948.1,1.2398]
[1765826361641,0.001,2948.9,2948.1,1.2398]
[1765826361848,0.001,2948.9,2948.2,0.4964]
[1765826362376,0.001,2948.9,2948.3,10.72635527]
[1765826362562,0.001,2948.9,2948.4,0.551]
[1765826363054,0.001,2948.9,2948.3,3.39178509]
[1765826363055,0.1795,2948.9,2948.5,0.551]
[1765826363231,0.001,2948.9,2948.5,0.551]
[1765826363431,0.001,2948.9,2948.5,1.0474]
[1765826363666,0.001,2948.9,2948.5,1.83388869]
[1765826363867,0.001,2948.9,2948.6,1.07687529]
[1765826364063,0.001,2948.9,2948.5,7.21440768]
[1765826364064,0.001,2948.9,2948.7,0.4964]
[1765826364240,0.001,2948.9,2948.8,3.94220998]
[1765826364444,6.71191108,2949.8,2948.8,7.33341996]
[1765826364651,0.72923864,2949.8,2949.1,0.1924]
[1765826364952,0.001,2950.1,2949.1,0.6888]
[1765826365357,0.001,2950.1,2949.1,0.1924]
[1765826365552,0.001,2950.1,2949.2,1.0474]
[1765826366065,0.001,2950.1,2949.3,0.4964]
[1765826366282,0.001,2950.1,2949.4,10.1715603]
[1765826366576,0.001,2950.1,2949.5,7.52419031]
[1765826366747,0.001,2950.1,2949.5,8.02059031]
[1765826367067,6.77575634,2951.7,2949.6,0.901904]
[1765826367467,3.38787817,2951.7,2950.0,5.87691899]
[1765826367670,0.001,2950.2,2949.7,0.4964]
[1765826367874,0.001,2950.2,2950.1,7.00839428]
[1765826368083,0.1785,2952.2,2950.2,0.58047529]
[1765826368239,0.4262,2952.7,2950.8,0.58047529]
[1765826368440,3.3865014,2952.9,2950.9,17.99138315]
[1765826368670,0.001,2951.4,2951.3,5.87691899]
[1765826368875,0.001,2951.4,2951.3,6.42791899]
[1765826369081,0.58047529,2952.9,2951.4,0.58047529]
[1765826369383,3.38592883,2953.4,2951.8,5.87691899]
[1765826369541,3.38535495,2953.9,2952.0,0.405504]
[1765826369736,6.7707099,2953.9,2952.1,0.551]
[1765826369938,0.05,2953.4,2951.7,0.1924]
[1765826370142,0.4272,2953.3,2951.8,0.551]
[1765826370354,0.405504,2953.2,2951.8,0.551]
[1765826370639,0.58047529,2953.0,2951.8,3.93871889]
[1765826370883,1.07392914,2952.9,2951.8,4.40211889]
[1765826371048,1.07392914,2952.9,2951.9,0.49727648]
[1765826371382,0.1357,2952.9,2952.0,0.551]
[1765826371870,0.455504,2952.8,2951.0,0.1932]
[1765826372073,0.405504,2952.4,2951.1,0.55]
[1765826372578,3.38663381,2952.8,2951.6,5.87691899]
[1765826372788,3.38663381,2952.8,2951.3,12.65359367]
[1765826372941,0.58047529,2952.7,2951.7,0.55]
[1765826373295,0.1357,2952.9,2951.7,0.55]
[1765826373453,0.58047529,2952.8,2951.7,0.55]
[1765826373657,0.58047529,2952.8,2951.7,1.0354]
[1765826373892,0.832704,2952.7,2951.3,3.38833734]
[1765826374062,0.832704,2952.7,2951.2,3.87383017]
[1765826374259,0.405504,2952.5,2950.9,0.1932]
[1765826374478,10.16122476,2952.4,2951.0,3.38864901]
[1765826374651,0.98597929,2952.3,2951.1,0.55]
[1765826374844,0.98597929,2952.3,2951.1,1.0354]
[1765826375585,0.58047529,2952.3,2951.1,1.0354]
[1765826375951,0.58047529,2952.4,2951.2,0.4854]
[1765826376174,0.58047529,2952.5,2951.2,0.4854]
[1765826376480,0.406504,2952.8,2951.3,3.38833734]
[1765826376481,0.001,2952.8,2951.3,3.38833734]
[1765826376647,0.001,2952.8,2951.4,0.58047529]
[1765826376845,0.001,2952.8,2951.4,1.06587529]
[1765826377091,0.001,2952.8,2951.5,1.0354]
[1765826377575,0.001,2952.8,2951.8,5.87691899]
[1765826377992,0.001,2952.8,2951.9,0.4854]
[1765826378159,0.001,2952.8,2951.9,1.0354]
[1765826378488,0.001,2952.8,2952.0,0.55]
[1765826378781,0.405504,2952.7,2951.5,0.4854]
[1765826378998,0.405504,2952.7,2951.9,0.55]
[1765826379284,0.832704,2952.7,2951.5,0.4854]
[1765826379449,0.832704,2952.7,2950.6,5.87691899]
[1765826379654,0.405504,2952.5,2951.0,1.0354]
[1765826379855,0.405504,2952.5,2951.7,3.38780649]
[1765826380057,0.405504,2952.5,2951.8,0.55]
[1765826380252,0.4272,2952.6,2951.8,3.93768396]
[1765826380453,0.4272,2952.6,2951.8,0.55]
[1765826380953,0.58047529,2952.4,2951.6,3.38789264]
[1765826381150,0.73543957,2952.3,2951.7,0.55]
[1765826381374,0.73543957,2952.3,2951.8,0.55]
[1765826382082,1.16263957,2952.3,2951.8,0.55]
[1765826382384,0.73543957,2952.3,2951.8,0.55]
[1765826382992,3.38730438,2952.2,2951.8,0.55]
[1765826383294,0.4272,2953.3,2952.2,0.1932]
[1765826383592,3.38634743,2953.1,2952.3,0.55]
[1765826383792,3.8132573,2953.3,2952.3,0.55]
[1765826383793,0.4272,2953.3,2952.3,0.55]
[1765826383955,3.38639365,2953.0,2952.3,1.0354]
[1765826384152,0.4272,2953.3,2952.3,1.0354]
[1765826384357,3.38645879,2953.0,2952.3,1.0354]
[1765826384656,0.55,2953.7,2952.4,0.4854]
[1765826384856,3.38524035,2954.0,2952.5,6.7739204]
[1765826385058,3.38524035,2954.0,2952.6,1.55003725]
[1765826385359,0.58047529,2953.9,2952.6,1.55003725]
[1765826385564,0.58047529,2953.9,2952.7,0.4854]
[1765826385760,0.4272,2953.6,2952.2,0.1932]
[1765826385965,0.1357,2952.9,2952.3,0.55]
[1765826386270,0.1357,2952.9,2952.4,0.55]
[1765826387288,0.1357,2952.9,2951.9,0.1932]
[1765826387289,3.38761609,2952.8,2951.9,0.1932]
[1765826387587,0.35233161,2952.7,2951.9,6.96846568]
[1765826387773,0.35233161,2952.7,2952.0,0.55]
[1765826388765,0.35233161,2952.7,2951.7,3.3878192]
[1765826388967,0.4272,2952.6,2951.8,0.55]
[1765826389196,0.405504,2952.5,2951.8,0.55]
[1765826389391,0.58047529,2952.3,2951.8,0.55]
[1765826389590,0.73546251,2952.2,2951.8,0.55]
[1765826390493,4.37299566,2952.5,2951.9,0.55]
[1765826390785,3.52222157,2952.9,2951.9,0.55]
[1765826390786,0.58147529,2952.8,2951.9,0.55]
[1765826390987,0.001,2952.8,2952.0,0.4854]
[1765826391396,0.001,2952.8,2952.1,10.16225736]
[1765826391569,0.001,2952.8,2952.1,6.77483824]
[1765826391772,0.001,2952.8,2951.5,0.4854]
[1765826391968,0.001,2952.8,2951.6,1.0354]
[1765826392170,0.001,2952.8,2951.7,3.38784459]
[1765826392474,0.001,2952.8,2952.0,3.38751785]
[1765826392684,0.001,2952.8,2952.0,6.77505172]
[1765826392886,0.001,2952.8,2952.1,0.55]
[1765826393091,0.001,2952.8,2952.2,0.55]
[1765826393264,0.4272,2952.7,2952.2,0.55]
[1765826393469,6.77369098,2952.6,2952.2,0.55]
[1765826393670,0.7200891,2952.5,2952.2,0.55]
[1765826393893,0.7200891,2952.5,2952.1,0.55]
[1765826394394,0.4272,2952.4,2951.4,3.3901925]
[1765826394592,0.4272,2952.4,2951.4,0.002]
[1765826394792,0.405504,2952.3,2951.4,0.002]
[1765826395093,0.1785,2951.5,2951.4,0.002]
[1765826395601,0.1785,2951.9,2951.4,0.002]
[1765826396103,0.6057,2951.9,2951.4,0.002]
[1765826396275,0.405504,2951.8,2951.4,0.002]
[1765826396475,0.832704,2951.8,2951.4,0.002]
[1765826396865,0.405504,2951.6,2951.4,0.002]
[1765826397394,3.38810774,2951.5,2951.4,0.002]
[1765826397893,4.10626863,2951.5,2951.4,0.002]
[1765826398197,4.53346863,2951.5,2951.4,0.002]
[1765826398501,4.10626863,2951.5,2951.4,0.002]
[1765826400069,0.71816089,2951.5,2951.4,0.002]
[1765826400270,0.1785,2952.3,2951.4,0.002]
[1765826400474,3.38772206,2952.8,2951.5,0.4854]
[1765826400809,0.58047529,2952.7,2951.5,0.4854]
[1765826401279,0.4272,2952.6,2951.6,0.55]
[1765826401484,0.98597929,2952.3,2951.6,3.93792431]
[1765826401798,0.98597929,2952.3,2951.6,0.55]
[1765826401970,0.1785,2951.7,2951.4,0.002]
[1765826402392,0.832704,2951.6,2950.2,0.002]
[1765826402578,0.405504,2951.3,2950.2,0.002]
[1765826402778,0.955504,2951.3,2950.2,0.002]
[1765826403003,0.4252,2951.2,2950.2,0.002]
[1765826403316,0.1109,2950.3,2950.2,0.002]
[1765826403871,4.9115651,2950.3,2950.2,0.002]
[1765826404090,0.405504,2950.2,2949.5,0.55]
[1765826404293,0.405504,2950.2,2949.3,3.39056332]
[1765826404294,0.830704,2950.2,2949.3,3.39056332]
[1765826404501,0.830704,2950.2,2949.3,3.9405472]
[1765826404707,0.830704,2950.2,2949.4,3.39045111]
[1765826404913,0.4252,2950.2,2949.3,0.55]
[1765826405076,1.29777699,2950.2,2949.4,0.55]
[1765826405511,3.3897156,2950.1,2949.2,6.78150006]
[1765826405673,3.3897156,2950.1,2949.3,0.55]
[1765826406018,0.87257699,2950.2,2949.3,0.55]
[1765826406169,0.1109,2950.7,2949.4,0.5025052]
[1765826406369,0.1109,2950.7,2949.4,0.4686]
[1765826406711,0.4252,2950.6,2949.5,0.55]
[1765826406867,0.830704,2950.6,2949.5,0.55]
[1765826407076,0.830704,2950.6,2949.3,0.4686]
[1765826407318,0.830704,2950.6,2949.4,1.06408501]
[1765826407486,0.830704,2950.5,2949.2,6.78150006]
[1765826407692,0.98597929,2950.3,2950.1,0.002]
[1765826408221,0.4252,2950.2,2950.1,0.002]
[1765826408585,0.98597929,2950.3,2950.1,0.002]
[1765826408791,1.76245141,2950.3,2950.1,0.002]
[1765826409522,0.830704,2950.2,2950.1,0.002]
[1765826409723,4.80077999,2950.2,2950.1,0.002]
[1765826412714,4.92437999,2950.2,2950.1,0.002]
[1765826415039,0.1236,2950.2,2950.1,0.002]
[1765826415216,0.5331,2950.7,2950.1,0.002]
[1765826415536,3.92218778,2950.7,2950.1,0.002]
[1765826415741,4.18688913,2950.6,2950.1,0.002]
[1765826415944,0.5331,2950.7,2950.1,0.192]
[1765826415945,0.1109,2950.7,2950.1,0.192]
[1765826416238,0.07156489,2951.5,2950.2,0.033896]
[1765826416239,3.3882997,2951.4,2950.2,0.033896]
[1765826416439,0.34598646,2951.3,2950.1,0.6606]
[1765826416742,3.56646224,2951.7,2950.2,0.4686]
[1765826416955,0.1785,2951.7,2950.2,0.4686]
[1765826417146,3.56638968,2951.7,2950.2,0.4686]
[1765826417631,0.4252,2951.6,2950.3,0.55]
[1765826417817,4.46489055,2951.5,2950.4,0.55]
[1765826418018,3.56592772,2952.1,2951.0,0.19]
[1765826418325,3.56593212,2952.1,2951.0,0.19]
[1765826418508,1.00567529,2952.0,2951.0,0.55]
[1765826418712,0.405504,2951.9,2951.0,0.55]
[1765826419044,3.56591912,2952.1,2951.1,0.19]
[1765826419444,0.1785,2952.1,2951.1,0.19]
[1765826419615,0.58047529,2952.0,2951.1,0.19]
[1765826419806,3.96808217,2952.0,2951.2,3.38845215]
[1765826420012,0.4252,2951.9,2951.3,0.55]
[1765826420716,7.35568905,2952.0,2951.1,3.57851778]
[1765826420917,7.35568905,2952.0,2951.4,0.55]
[1765826421117,3.96808217,2952.0,2951.4,0.55]
[1765826421429,3.96808217,2952.0,2950.5,3.38919771]
[1765826421430,0.830704,2951.9,2950.4,0.4686]
[1765826421628,0.830704,2951.9,2950.0,3.39177771]
[1765826421629,0.830704,2951.9,2951.1,3.38852032]
[1765826421828,0.405504,2951.9,2951.1,0.55]
[1765826422032,3.81296339,2951.8,2951.1,3.93856684]
[1765826422442,0.4252,2951.8,2951.1,3.93853471]
[1765826422742,4.37366272,2951.9,2951.1,4.12853471]
[1765826423060,3.79317347,2951.9,2951.1,7.51710168]
[1765826423263,7.18084294,2951.9,2951.1,0.55]
[1765826423554,0.1236,2951.2,2950.7,3.38893347]
[1765826423849,0.1236,2951.2,2951.0,0.55]
[1765826424352,0.405504,2951.5,2951.0,0.55]
[1765826424843,0.405504,2951.5,2950.5,0.4686]
[1765826424844,0.1236,2951.1,2950.5,3.38920479]
[1765826425145,0.1236,2951.1,2950.0,0.002]
[1765826425349,0.1109,2951.0,2950.2,0.55]
[1765826425544,0.405504,2951.5,2950.8,3.38890879]
[1765826425713,0.58047529,2951.6,2950.9,0.55]
[1765826426068,0.05,2952.4,2951.0,6.7773636]
[1765826426219,0.405504,2952.0,2951.1,0.19]
[1765826426424,3.38771981,2951.9,2951.1,0.22388566]
[1765826426622,0.1785,2952.1,2951.2,0.4686]
[1765826426821,0.4752,2953.1,2951.4,0.58047529]
[1765826427022,0.58047529,2952.7,2951.5,1.05248107]
[1765826427251,3.38675679,2952.7,2951.5,1.05248107]
[1765826427451,3.38675679,2952.7,2951.6,0.4686]
[1765826427651,0.1357,2953.2,2951.6,0.4686]
[1765826427845,3.38700708,2952.5,2951.7,0.55]
[1765826428160,3.38681738,2952.7,2951.7,0.55]
[1765826428448,6.77363476,2952.7,2951.7,3.93787817]
[1765826428650,3.38681738,2952.7,2951.7,5.13906492]
[1765826428850,3.38681738,2952.7,2951.7,4.58906492]
[1765826429056,3.38681738,2952.7,2951.7,5.13906492]
[1765826429254,0.58047529,2952.7,2951.7,5.13906492]
[1765826429853,0.1357,2953.2,2951.7,5.13906492]
[1765826430059,3.3856988,2953.6,2951.8,0.405504]
[1765826430269,3.3856988,2953.6,2952.1,7.32022468]
[1765826430464,0.58047529,2953.5,2952.2,1.95902247]
[1765826430752,7.15248748,2953.6,2952.3,0.4781]
[1765826430959,0.58047529,2953.5,2952.3,0.4781]
[1765826431160,3.92138763,2954.0,2952.5,7.30641421]
[1765826431461,3.92138763,2954.0,2952.6,0.4781]
[1765826431663,0.39213876,2953.9,2952.7,0.77845142]
[1765826432035,0.58047529,2953.7,2952.4,3.38707492]
[1765826432233,0.405504,2953.6,2952.5,0.55]
[1765826432432,0.1357,2952.6,2951.8,0.4725]
[1765826432648,0.405504,2953.2,2951.9,0.55]
[1765826432837,0.001,2953.0,2952.0,0.03387533]
[1765826433037,0.001,2953.0,2952.3,6.77436485]
[1765826433238,0.001,2953.0,2952.4,0.55]
[1765826433438,0.001,2953.0,2952.5,0.0338696]
[1765826433735,0.001,2953.0,2952.4,1.0225]
[1765826434256,0.001,2953.0,2952.5,7.2464204]
[1765826434642,0.1357,2952.9,2952.6,0.55]
[1765826434835,0.1357,2952.9,2952.4,3.38705596]
[1765826434836,0.1357,2952.9,2952.0,1.30877895]
[1765826435055,0.1357,2952.9,2952.4,3.38703725]
[1765826435658,0.1357,2952.9,2952.5,0.55]
[1765826435859,0.1357,2952.9,2951.9,0.58047529]
[1765826435860,0.4252,2952.8,2951.9,3.38760036]
[1765826436027,0.4252,2952.8,2951.8,3.38772826]
[1765826436373,0.1785,2951.9,2950.5,0.4725]
[1765826436530,0.830704,2951.8,2950.9,3.9387325]
[1765826436857,0.405504,2951.6,2950.1,0.192]
[1765826437039,0.405504,2951.6,2950.2,0.55]
[1765826437243,0.4252,2951.5,2950.2,0.55]
[1765826437756,0.405504,2951.4,2950.1,0.002]
[1765826438058,0.455504,2951.4,2950.2,0.55]
[1765826438247,0.405504,2951.1,2950.1,0.002]
[1765826438452,0.405504,2951.1,2950.1,0.552]
[1765826438757,0.58047529,2951.2,2950.1,0.002]
[1765826438758,0.1109,2950.2,2950.1,0.002]
[1765826438958,0.516404,2950.2,2950.1,0.002]
[1765826439142,0.941604,2950.2,2950.1,0.002]
[1765826440164,4.3312047,2950.2,2950.1,0.002]
[1765826440342,4.91167999,2950.2,2950.1,0.002]
[1765826440947,0.58047529,2951.2,2950.1,1.2128]
[1765826441156,0.1109,2950.9,2950.1,0.7403]
[1765826442067,0.1109,2950.9,2950.1,0.552]
[1765826442279,0.98597929,2950.6,2950.1,0.002]
[1765826442441,0.58047529,2950.6,2950.1,0.002]
[1765826442955,6.77805266,2950.7,2950.1,0.002]
[1765826443564,1.00567529,2950.6,2950.1,0.002]
[1765826444058,0.4252,2950.5,2950.1,0.002]
[1765826444364,1.06832868,2950.7,2950.1,0.002]
[1765826444570,0.58047529,2950.7,2950.1,0.002]
[1765826446361,0.58047529,2950.5,2950.1,0.002]
[1765826447235,0.405504,2950.3,2950.1,0.002]
[1765826447639,0.405504,2950.4,2950.1,0.002]
[1765826447840,1.11534029,2950.4,2950.1,0.002]
[1765826448084,0.58047529,2950.5,2950.1,0.002]
[1765826448285,0.58047529,2950.3,2950.1,0.002]
[1765826448797,0.58047529,2950.4,2950.1,0.002]
[1765826448997,0.58047529,2950.7,2950.1,0.1903]
[1765826449291,3.79441548,2950.8,2950.1,0.1903]
[1765826449292,0.1109,2950.9,2950.2,0.583896]
[1765826449445,7.2011859,2951.6,2950.2,0.55]
[1765826449645,1.11391544,2951.5,2950.2,1.0225]
[1765826449885,0.405504,2951.4,2950.2,1.0225]
[1765826450049,0.1109,2950.3,2950.1,0.002]
[1765826450248,0.405504,2951.2,2950.1,0.552]
[1765826450572,0.98597929,2951.0,2950.1,0.552]
[1765826450775,0.1109,2950.2,2950.1,0.552]
[1765826450963,0.1109,2950.2,2950.1,0.002]
[1765826451366,0.941604,2950.2,2950.1,0.002]
[1765826451666,0.405504,2950.2,2950.1,0.002]
[1765826452049,0.830704,2950.2,2950.1,0.002]
[1765826452249,0.405504,2950.2,2950.1,0.002]
[1765826452450,3.7951047,2950.2,2950.1,0.002]
[1765826452654,4.37557999,2950.2,2950.1,0.002]
[1765826452880,5.57728724,2950.2,2950.1,0.002]
[1765826455282,20.32158424,2950.2,2950.1,0.002]
[1765826455460,10.78191724,2950.2,2950.1,0.002]
[1765826455665,8.31772424,2950.2,2950.1,0.002]
[1765826455993,0.455504,2949.1,2947.8,0.002]
[1765826456198,0.880704,2949.1,2947.9,3.94215303]
[1765826456563,1.41117929,2949.1,2948.1,0.1903]
[1765826456764,4.80204429,2949.1,2948.1,0.1903]
[1765826457359,4.80204429,2949.1,2948.2,0.55]
[1765826457962,0.830704,2949.1,2948.2,0.55]
[1765826458162,4.80204429,2949.1,2948.2,0.55]
[1765826459083,4.80204429,2949.1,2948.1,0.002]
[1765826459084,5.62133336,2949.1,2948.1,0.002]
[1765826459265,5.62133336,2949.1,2948.1,3.39394227]
[1765826459465,5.62133336,2949.1,2948.1,0.002]
[1765826460076,5.74493336,2949.1,2948.1,0.002]
[1765826460387,0.406704,2949.0,2948.9,1e-08]
[1765826460562,24.57852249,2949.0,2948.9,1e-08]
[1765826460767,0.405504,2947.8,2945.8,0.002]
[1765826460962,0.455504,2947.2,2945.8,0.002]
[1765826461283,0.405504,2946.8,2946.6,0.002]
[1765826461685,0.935604,2946.7,2946.6,0.002]
[1765826462498,0.1089,2946.9,2946.6,0.002]
[1765826462700,0.826704,2946.8,2946.6,0.002]
[1765826462903,0.876704,2946.8,2946.6,0.002]
[1765826463119,0.58047529,2946.7,2946.6,0.002]
[1765826465094,4.80080605,2946.7,2946.6,0.002]
[1765826465294,5.63112826,2946.7,2946.6,0.002]
[1765826466392,0.98597929,2946.7,2946.6,0.002]
[1765826466704,3.97410205,2946.7,2946.6,0.002]
[1765826466893,4.80080605,2946.7,2946.6,0.002]
[1765826467341,3.97410205,2946.7,2946.6,0.002]
[1765826468089,0.58047529,2946.7,2946.6,0.002]
[1765826468818,3.97410205,2946.7,2946.6,0.002]
[1765826469016,0.58047529,2946.7,2946.6,0.002]
[1765826469196,0.1089,2946.9,2946.6,0.002]
[1765826469726,0.405504,2946.7,2946.6,0.002]
[1765826470524,0.826704,2946.7,2946.6,0.002]
[1765826470890,1.40717929,2946.7,2946.6,0.002]
[1765826471390,4.80080605,2946.7,2946.6,0.002]
[1765826471590,5.53562713,2946.7,2946.6,0.002]
[1765826472619,5.66312713,2946.7,2946.6,0.002]
[1765826473318,4.34783076,2946.7,2946.6,0.002]
[1765826473625,4.92830605,2946.7,2946.6,0.002]
[1765826476631,4.10160205,2946.7,2946.6,0.002]
[1765826476806,4.92530605,2946.7,2946.6,0.002]
[1765826477135,0.1275,2946.7,2946.6,0.002]
[1765826477693,3.52112676,2946.7,2946.6,0.002]
[1765826477916,4.68223177,2946.7,2946.6,0.002]
[1765826478304,3.93932676,2946.7,2946.6,0.002]
[1765826478731,0.1275,2946.7,2946.6,0.002]
[1765826478895,3.93932676,2946.7,2946.6,0.002]
[1765826479094,0.1275,2946.7,2946.6,0.002]
[1765826480031,3.52112676,2946.7,2946.6,0.002]
[1765826480201,5.7262587,2946.7,2946.6,0.002]
[1765826480829,0.1275,2946.7,2946.6,0.002]
[1765826481199,0.4192,2947.0,2946.6,0.002]
[1765826481200,0.001,2947.0,2946.6,0.002]
[1765826481497,0.001,2947.0,2946.6,0.9103]
[1765826481715,0.001,2947.0,2946.6,0.002]
[1765826481913,3.39429503,2947.0,2946.6,0.002]
[1765826482122,0.001,2947.0,2946.6,0.002]
[1765826482297,0.001,2947.0,2946.6,0.456]
[1765826482498,0.001,2947.0,2946.7,0.55]
[1765826483024,0.4212,2946.8,2946.6,0.002]
[1765826483523,3.52178362,2947.0,2946.7,0.4543]
[1765826483524,0.001,2947.0,2946.7,0.4543]
[1765826483701,0.001,2947.0,2946.7,0.83921571]
[1765826483906,0.001,2947.0,2946.7,0.38521571]
[1765826484098,0.001,2947.0,2946.8,0.55]
[1765826484525,0.001,2947.0,2946.9,0.9083]
[1765826484722,0.001,2947.0,2946.6,0.002]
[1765826484907,0.001,2947.0,2946.9,1.0043]
[1765826485620,0.001,2947.0,2946.9,4.39769645]
[1765826486024,0.001,2947.0,2946.7,3.39354538]
[1765826486226,0.001,2947.0,2946.8,3.94347815]
[1765826486440,0.001,2947.0,2946.9,3.39339645]
[1765826486911,0.001,2947.0,2946.9,3.94339645]
[1765826487294,0.001,2947.0,2946.8,0.73391439]
[1765826487599,0.001,2947.0,2946.8,0.454]
[1765826487805,0.001,2947.0,2946.9,7.92064527]
[1765826487999,0.001,2947.0,2946.9,8.7677098]
[1765826489799,0.001,2947.0,2946.9,12.74158154]
[1765826490427,0.001,2947.0,2946.9,13.29158154]
[1765826490612,0.001,2947.0,2946.9,12.74158154]
[1765826490812,0.001,2947.0,2946.9,13.29158154]
[1765826491411,0.001,2948.2,2947.0,0.58047529]
[1765826491611,0.001,2948.2,2948.1,0.6666]
[1765826491814,0.001,2948.2,2948.1,4.60861519]
[1765826492112,0.05,2949.9,2948.1,4.60861519]
[1765826492113,3.52542981,2950.1,2948.2,0.58047529]
[1765826492320,0.1357,2950.1,2949.3,0.6624]
[1765826492511,3.39033272,2949.6,2948.5,7.01234527]
[1765826492712,3.3915395,2949.4,2948.6,0.55]
[1765826493006,0.001,2949.4,2948.6,1.0262]
[1765826493701,0.001,2949.4,2948.7,6.78264998]
[1765826493909,0.001,2949.4,2949.3,0.4727]
[1765826494218,0.1285,2949.4,2948.6,3.39138641]
[1765826494533,0.5477,2949.4,2948.7,0.55]
[1765826496149,0.5477,2949.4,2948.1,0.1874]
[1765826496150,0.1807,2948.8,2947.9,3.39217843]
[1765826496432,0.1807,2948.8,2948.2,0.55]
[1765826498042,0.58047529,2948.6,2948.2,0.55]